Cogmind - Beta 15 @@@ ROGUE MODE // 2025.06.27 @ 19:56:28 Player: StaticNoob Result: Destroyed by X-62 Marksman with Pulse Rifle Performance ------------- Evolutions (2) 1000 Regions Visited (3) 600 Robots Destroyed (50) 250 Value Destroyed (1403) 1403 Prototype IDs (3) 60 Alien Tech Used (0) 0 Bonus (-59) -59 TOTAL SCORE: 3254 Bonus ------- Friendly Fire -59 Cogmind --------- Core Integrity 0/550 Matter 170/300 Energy 100/100 System Corruption 0% Temperature Cool (9) Movement Core (700) Ox13 Location -8/Materials Parts ------- > --- POWER (1) -------- (None) > --- PROPULSION (4) --- (None) > --- UTILITY (4) ------ High-capacity Storage Unit Improved Targeting Computer Improved Targeting Computer Hacking Suite > --- WEAPON (2) ------- Light Assault Rifle > --- INVENTORY (20) --- Thermal Generator Small Storage Unit Small Matter Pod (50) Improved Sensor Array Improved Signal Interpreter Improved Terrain Scanner Improved EM Shotgun Improved EM Shotgun Ion Cannon Subdweller Shrapnel Launcher Missile Launcher Datajack Hammer Peak State ------------ > --- POWER ------------ Subdweller Power Source > --- PROPULSION ------- Light Treads Wheel Wheel Compact Wheel > --- UTILITY ---------- High-capacity Storage Unit Improved Targeting Computer Improved Targeting Computer Hacking Suite > --- WEAPON ----------- Spread Laser Flak Cannon > --- INVENTORY -------- Thermal Generator Small Storage Unit Small Matter Pod Improved Sensor Array Improved Signal Interpreter Improved Terrain Scanner Improved EM Shotgun Improved EM Shotgun Ion Cannon Light Assault Rifle Flak Cannon Subdweller Shrapnel Launcher Missile Launcher Datajack Hammer [Rating: 22] Favorites ----------- Power Light Ion Engine Engine Light Ion Engine Propulsion Light Treads Treads Light Treads Wheel Wheel Utility High-capacity Storage Unit Device Improved Terrain Scanner Storage High-capacity Storage Unit Processor Improved Targeting Computer Hackware Hacking Suite Protection Light Armor Plating Weapon Improved EM Shotgun Energy Gun Improved EM Shotgun Ballistic Gun Assault Rifle Ballistic Cannon Flak Cannon Impact Weapon Hammer Build | -11 -10 -10 -8 ------- Run | Yrd Mat Sub Mat Slots Evolved 4 | . . . 4 Power . | . . . . Propulsion 2 | . . . 2 Utility 2 | . . . 2 Weapon . | . . . . Parts Attached 39 | 7 19 3 10 Power 5 | 1 3 1 . Engine 5 | 1 3 1 . Core . | . . . . Reactor . | . . . . Propulsion 10 | 2 5 . 3 Treads 2 | . 2 . . Leg . | . . . . Wheel 8 | 2 3 . 3 Hover . | . . . . Flight . | . . . . Utility 10 | 2 4 1 3 Device 1 | 1 . . . Storage 2 | 1 1 . . Processor 2 | . . . 2 Hackware 1 | . . . 1 Protection 4 | . 3 1 . Artifact . | . . . . Weapon 14 | 2 7 1 4 Energy Gun 8 | 1 4 1 2 Energy Cannon . | . . . . Ballistic Gun 3 | 1 2 . . Ballistic Cannon 2 | . . . 2 Launcher . | . . . . Special Weapon . | . . . . Impact Weapon 1 | . 1 . . Slashing Weapon . | . . . . Piercing Weapon . | . . . . Special Melee Weapon . | . . . . Unidentified Prototypes 1 | . 1 . . Corrupted Parts 1 | . . 1 . System Corruption 5 | . . 5 . Parts Lost 27 | . 14 3 10 Power 5 | . 3 1 1 Propulsion 10 | . 5 . 5 Utility 5 | . 3 1 1 Weapon 7 | . 3 1 3 Highest Loss Streak 8 | . 5 1 8 To Critical Strikes . | . . . . Average Backups 12 | 3 10 14 11 Power . | . . . . Propulsion 2 | 1 2 4 . Utility 3 | . 3 3 3 Weapon 4 | 1 3 4 6 Tool/Special . | . . . . Unused Backups 14 | . 1 1 12 Power 1 | . . . 1 Propulsion 3 | . . 1 2 Utility 5 | . . . 5 Weapon 4 | . 1 . 3 Tool/Special 1 | . . . 1 Average Slot Usage (%) 90 | . 95 86 82 Engine 8 | . 13 2 7 Treads 17 | . 11 28 9 Wheel 9 | . 15 . 17 Device 1 | . 2 . . Storage 13 | . 14 14 9 Processor 1 | . . . 11 Protection 10 | . 10 14 1 Energy Gun 18 | . 14 27 10 Ballistic Gun 5 | . 11 . . Peak Build Rating 22 | 9 12 15 22 Average Rating 11 | 5 9 12 18 On Entrance 9 | . 9 12 15 Naked Turns . | . . . . Heaviest Build 54 | 14 54 54 54 Greatest Support 40 | 26 40 40 36 Greatest Overweight (x) 16 | . 5 2 16 Average Overweight (x) 1 | . 1 1 1 Largest Inventory Capacity 20 | 8 20 20 20 Average Capacity 19 | 7 19 20 20 Most Carried 20 | 5 16 20 18 Average Carried 14 | 3 11 19 12 Final Capacity 20 | 8 20 20 20 Final Carried 19 | 4 16 19 13 Class Distribution -------------------- 100% | Mutant Dominant Class ---------------- Mutant | -10/Materials Mutant | -10/Subcaves Mutant | -8/Materials Resources | -11 -10 -10 -8 ----------- Run | Yrd Mat Sub Mat Matter Collected 1021 | 291 575 104 51 Remotely . | . . . . Salvage Created 1809 | 120 966 373 350 Parts 112 | 3 62 28 19 Haulers Intercepted 1 | . 1 . . Recyclers Shooed 1 | 1 . . . Parts Field Recycled . | . . . . Retrieved Matter . | . . . . Parts Self-Destructed 5 | . . 5 . Prevented 3 | . . 3 . Kills | -11 -10 -10 -8 ------- Run | Yrd Mat Sub Mat Combat Hostiles Destroyed 38 | . 24 7 7 Guns 32 | . 21 6 5 Cannons 1 | . . . 1 AOE 4 | . 3 . 1 Classes Destroyed 11 | 2 7 1 1 Worker 3 | . 3 . . Tunneler 2 | 1 1 . . Hauler 1 | . 1 . . Recycler 1 | 1 . . . Operator 3 | . 2 . 1 Watcher 2 | . 2 . . Swarmer 9 | . 9 . . Grunt 17 | . 12 . 5 Sentry 2 | . . 1 1 Specialist 1 | . . . 1 Subdweller 9 | . 3 6 . Best Kill Streak 5 | 2 5 2 3 Combat Bots Only 5 | . 5 2 3 Max Kills in Single Turn 2 | 1 2 1 2 Gunslinging . | . . . . Exploded 2 | . 2 . 1 Melee . | . . . . Uniques/NPCs Destroyed . | . . . . Combat | -11 -10 -10 -8 -------- Run | Yrd Mat Sub Mat Hostile Shots Fired 257 | . 129 48 80 Missed 70 | . 34 19 17 Hits 187 | . 95 29 63 Projectile 187 | . 95 29 63 AOE 2 | . . 2 . Critical Strikes 4 | . 1 1 2 Damage Taken 3140 | . 1128 593 1419 Core 792 | . 157 77 558 Absorbed by Shields . | . . . . Regen/Repaired (Parts) 61 | . 61 . . Core Remaining (%) 53 | 100 . 6 . Volleys Fired 186 | 7 113 38 28 Largest 2 | 1 2 2 2 Hottest 102 | 20 90 90 102 Shots Fired 313 | 7 207 51 48 Gun 300 | 7 207 51 35 Cannon 13 | . . . 13 Launcher . | . . . . Special . | . . . . Kinetic 180 | 7 152 . 21 Thermal 18 | . 5 . 13 Explosive . | . . . . Electromagnetic 115 | . 50 51 14 Robot Hit Streak 14 | 7 14 12 11 Robot Miss Streak 7 | . 5 2 7 Penetration Max . | . . . . Secondary Targets 4 | . 3 . 1 Max Gunslinging Chain 1 | . 1 . 1 Shots Hit Robots 216 | 7 122 44 43 Core Hits 112 | 3 52 19 38 Critical Kills 1 | . 1 . . Critical Parts Destroyed . | . . . . Critical Strikes 4 | . 3 1 . Destroy 1 | . 1 . . Corrupt 3 | . 2 1 . Melee Attacks 4 | . 3 . 1 Impact 4 | . 3 . 1 Slashing . | . . . . Piercing . | . . . . Sneak Attacks 1 | . 1 . . Combat Hostiles . | . . . . Follow-up Attacks . | . . . . Damage Inflicted 3371 | 82 1734 646 909 Guns 2570 | 82 1425 646 417 Cannons 254 | . . . 254 Explosions 472 | . 234 . 238 Melee 75 | . 75 . . Ramming . | . . . . Kinetic 1271 | 82 876 . 313 Thermal 418 | . 244 . 174 Explosive 238 | . . . 238 Electromagnetic 1369 | . 539 646 184 Impact 75 | . 75 . . Slashing . | . . . . Piercing . | . . . . Highest Corruption 8 | . 3 8 . Average Corruption 3 | . 2 3 . Corruption Purged . | . . . . Corruption Blocked . | . . . . Effects 45 | . 22 23 . Message Errors 14 | . 11 3 . Matter Fused 9 | . 2 7 . Heat Flow Errors 4 | . 1 3 . Energy Discharges 3 | . 1 2 . Parts Fused 1 | . . 1 . Data Loss (minor) 4 | . 1 3 . Data Loss (major) 5 | . 2 3 . Misfires 2 | . 1 1 . Alerts 1 | . 1 . . Weapon Failures 2 | . 2 . . Overload Shots . | . . . . Overflow Damage 35 | . 35 . . Projectiles . | . . . . Explosions . | . . . . Melee 35 | . 35 . . Knockbacks 6 | . . . 6 Impact . | . . . . Kinetic 6 | . . . 6 Secondary . | . . . . Self-Inflicted Damage 48 | . . . 48 Shots 1 | . . . 1 Rammed . | . . . . Targets Rammed . | . . . . Kicked . | . . . . Crushed . | . . . . Highest Temperature 219 | . 186 219 215 Average Temperature 62 | . 56 105 76 Received Heat Transfer 843 | . 483 18 342 Siege Activations . | . . . . Martial Activations . | . . . . Shielding Activations . | . . . . Robots Disrupted . | . . . . Combat Hostiles . | . . . . Robots Corrupted 1 | . . 1 . Combat Hostiles 1 | . . 1 . Parts Fried 10 | . 6 4 . Impact Corruptions 1 | . 1 . . Robots Melted . | . . . . Combat Hostiles . | . . . . Parts Melted 1 | . 1 . . Heat Transferred 590 | . 375 . 215 Parts Sabotaged . | . . . . Parts Stolen . | . . . . Parts Stripped . | . . . . Power Chain Reactions 4 | . 4 . . Alert | -11 -10 -10 -8 ------- Run | Yrd Mat Sub Mat Maximum Alert Level 1 | . 1 . . Low Security (%) 91 | 100 89 . 100 Level 1 8 | . 10 . . Level 2 . | . . . . Level 3 . | . . . . Level 4 . | . . . . Level 5 . | . . . . High Security . | . . . . Max Security . | . . . . Peak Influence 260 | 5 260 . 127 Initial . | . . . . Average 96 | 1 108 . 61 Influence Increases 914 | 10 639 20 245 Destroy 0b10 Robot/C 580 | . 420 20 140 Destroy 0b10 Robot/NC 60 | 10 45 . 5 Destroy Leader 116 | . 86 . 30 Successful Hack 17 | . 14 . 3 Select Force Hacks 60 | . 60 . . Disable Machine 60 | . . . 60 Destroy Structure 21 | . 14 . 7 Influence Decreases 909 | 10 620 39 240 Entered New Map 10 | . . 10 . Time Decay 650 | 10 480 20 140 Lost Part 249 | . 140 9 100 Squads Dispatched 10 | . 6 . 4 Investigation 4 | . 4 . . Extermination . | . . . . Reinforcement 6 | . 2 . 4 Assault . | . . . . Garrison . | . . . . Intercept . | . . . . Searches Triggered . | . . . . Construction Impeded 1 | . . . 1 Haulers Reinforced . | . . . . Active Scanning Responses . | . . . . Cargo Convoy Interrupts . | . . . . Stealth | -11 -10 -10 -8 --------- Run | Yrd Mat Sub Mat Distress Signals 3 | . 2 . 1 Communications Jammed . | . . . . Distress Signals . | . . . . Times Spotted 57 | . 36 9 12 Peak Tracking Total 5 | . 5 2 4 Tactical Retreats 3 | . 2 1 . Traps | -11 -10 -10 -8 ------- Run | Yrd Mat Sub Mat Traps Triggered 6 | . 6 . . Indirectly . | . . . . Trap Hack Attempts . | . . . . Triggered . | . . . . Disarmed . | . . . . Reprogrammed . | . . . . Reused . | . . . . Traps Extracted . | . . . . Installed . | . . . . Triggered . | . . . . Machines | -11 -10 -10 -8 ---------- Run | Yrd Mat Sub Mat Machines Disabled 4 | . . . 4 Max in Single Turn 3 | . . . 3 Machines Repaired . | . . . . Machines Dismantled . | . . . . Machines Sabotaged . | . . . . Overloaded Fab Kills . | . . . . Hacking | -11 -10 -10 -8 --------- Run | Yrd Mat Sub Mat Machines Accessed 10 | . 8 . 2 Terminals 7 | . 5 . 2 Fabricators . | . . . . Repair Stations 1 | . 1 . . Recycling Units 2 | . 2 . . Scanalyzers . | . . . . Garrison Access . | . . . . Total Hacks 30 | . 20 . 10 Successful 17 | . 11 . 6 Failed 13 | . 9 . 4 Catastrophic 1 | . 1 . . Database Lockouts . | . . . . Manual 23 | . 16 . 7 Terminals 25 | . 15 . 10 Fabricators . | . . . . Repair Stations 2 | . 2 . . Recycling Units 3 | . 3 . . Scanalyzers . | . . . . Garrison Access . | . . . . Terminal Hacks 6 | . 2 . 4 Robot Analysis 2 | . 1 . 1 Prototype ID Bank 1 | . . . 1 Alert Level 1 | . . . 1 Locate Traps 2 | . 1 . 1 Fabricator Hacks . | . . . . Repair Station Hacks 2 | . 2 . . Scan Component 1 | . 1 . . Repair 1 | . 1 . . Recycling Unit Hacks 1 | . 1 . . Retrieve Components 1 | . 1 . . Scanalyzer . | . . . . Garrison Access Hacks . | . . . . Unauthorized Hacks 8 | . 6 . 2 Terminals 6 | . 4 . 2 Botnet 6 | . 4 . 2 Fabricators . | . . . . Repair Stations . | . . . . Recycling Units 2 | . 2 . . Tunnel 2 | . 2 . . Scanalyzers . | . . . . Garrison Access . | . . . . Data Cores Recovered 1 | . 1 . . Used 1 | . 1 . . Hacking Detections 7 | . 5 . 2 Full Trace Events 2 | . 1 . 1 Feedback Events . | . . . . Feedback Blocked . | . . . . Robot Schematics Acquired . | . . . . Robots Built . | . . . . Authchips . | . . . . Time . | . . . . Total Robot Build Rating . | . . . . Part Schematics Acquired . | . . . . Parts Built . | . . . . Authchips . | . . . . Time . | . . . . Total Part Build Rating . | . . . . Parts Repaired 1 | . 1 . . Time 26 | . 26 . . Parts Recycled . | . . . . Recycled Matter . | . . . . Retrieved Matter . | . . . . Retrieved Components 9 | . 9 . . Parts Scanalyzed . | . . . . Part Schematics Acquired . | . . . . Parts Damaged . | . . . . Bothacking | -11 -10 -10 -8 ------------ Run | Yrd Mat Sub Mat Used RIF Installer . | . . . . Robots Hacked . | . . . . Non-combat . | . . . . Combat . | . . . . Robot Hacks Applied . | . . . . Relay Couplers Released . | . . . . Fabnet Peak Effective % . | . . . . Robots Rewired . | . . . . Allies Hacked . | . . . . Hacks Repelled . | . . . . Allies | -11 -10 -10 -8 -------- Run | Yrd Mat Sub Mat Total Allies . | . . . . Largest Group . | . . . . Highest-Rated Group . | . . . . Highest-Rated Ally . | . . . . Total Orders . | . . . . Ally Attacks . | . . . . Total Damage . | . . . . Kills . | . . . . Allies Corrupted . | . . . . Allies Melted . | . . . . Intel | -11 -10 -10 -8 ------- Run | Yrd Mat Sub Mat Active Infowar (turns) 310 | 30 280 . . Terrain 310 | 30 280 . . Robot Analysis Total 2 | . 1 . 1 Derelict Logs Recovered 1 | . . 1 . Drone Launches . | . . . . Drone Recoveries . | . . . . Exploration | -11 -10 -10 -8 ------------- Run | Yrd Mat Sub Mat Turns Passed 2899 | 67 1396 1134 302 Spaces Moved 1279 | 45 665 421 148 Core 6 | 5 . . 1 Treads 638 | . 217 421 . Legs . | . . . . Wheels 635 | 40 448 . 147 Hover . | . . . . Flight . | . . . . Fastest Speed 50 | 50 90 240 101 Average Speed 172 | 86 150 240 111 Slowest Speed 850 | 100 240 320 850 Overloaded Moves . | . . . . Propulsion Burnouts . | . . . . Robots Hopped . | . . . . Potential Cave-ins . | . . . . Cave-ins Triggered . | . . . . Exploration Rate (%) 37 | 4 95 34 15 Regions Visited 3 Branch Regions 1 Pre-discovered Areas 2 | . 2 . . Known Exits Taken . | . . . . Unknown Exits Taken 3 | 1 1 1 . Scrap Searched . | . . . . Spaces Dug 1 | . 1 . . Terrain Destroyed 19 | . 12 . 7 Melee 1 | . 1 . . Projectile . | . . . . AOE 18 | . 11 . 7 Terrain Rammed . | . . . . Walls Destroyed . | . . . . Machines Disabled . | . . . . Actions | -11 -10 -10 -8 --------- Run | Yrd Mat Sub Mat Total 1661 | 63 860 498 240 Wait 80 | . 26 24 30 Move 1276 | 44 664 420 148 Hop . | . . . . Pick Up 42 | 5 22 8 7 Fast Attach 24 | 6 10 3 5 Attach 22 | 1 12 2 7 Detach 2 | . . . 2 Swap 8 | . 6 . 2 Drop 17 | . 4 3 10 Fire 186 | 7 113 38 28 Melee 4 | . 3 . 1 Ram . | . . . . Kick . | . . . . Crush . | . . . . Escape Stasis . | . . . . Rewire . | . . . . Trap . | . . . . Miscellaneous . | . . . . Route ------- -11/Scrapyard -10/Materials (discovered 5 exits: [*Mat x3] / [*Min] / [*Sub]) -10/Subcaves (discovered 2 exits: *Mat x2) -8/Materials (discovered 1 exit: [*Fac]) History --------- Turn | Location | Event 22 | -11/Scrapyard | Discovered new exit (range 15) 68 | -11/Scrapyard | Entered Materials 125 | -10/Materials | Discovered new exit (range 16) 307 | -10/Materials | Build established: Mutant 593 | -10/Materials | Discovered new exit (range 4) 668 | -10/Materials | Derelicts attacked the area 697 | -10/Materials | Core integrity fell below 50% 709 | -10/Materials | Lost 5 parts (1n2u2w) 798 | -10/Materials | Discovered new exit (range 9) 891 | -10/Materials | Discovered new exit (range 12) 913 | -10/Materials | Lost 5 parts (2p2n1w) 1252 | -10/Materials | Discovered new exit (range 10) 1343 | -10/Materials | Repaired Lgt. Armor Plating 1464 | -10/Materials | Entered Subcaves 1465 | -10/Subcaves | Approached by a straggling Scientist 1721 | -10/Subcaves | A swath of the cavern ceiling suddenly collapsed 1882 | -10/Subcaves | Learned Materials terminal intel 2206 | -10/Subcaves | Core integrity fell below 20% 2236 | -10/Subcaves | Discovered new exit (range 14) 2589 | -10/Subcaves | Discovered new exit (range 5) 2598 | -10/Subcaves | Entered Materials 2598 | -8/Materials | Evolved 4 slots: Propulsion x2, Utility x2 2599 | -8/Materials | Loaded intel: 12 terminal locations 2836 | -8/Materials | Discovered new exit (range 16) 2867 | -8/Materials | Core integrity fell below 50% 2891 | -8/Materials | Core integrity fell below 20% 2900 | -8/Materials | Destroyed by X-62 Marksman with Pulse Rifle Last Messages --------------- 02876_ U-05 Engineer builds a Wall. 02876_ Spread Laser destroyed. 02876_ Knocked back. 02881_ Penetrated by Slug. 02882_ X-62 Marksman knocked back. 02883_ Knocked back. 02884_ Slug penetrates H-61 Shepherd. 02885_ H-61 Shepherd calls for reinforcements. 02885_ ALERT: Hostile activity reported, dispatching reinforcements to area. 02890_ Slug penetrates Electrolysis Chamber. 02890_ Electrolysis Chamber disabled. 02890_ Knocked back. 02894_ U-05 Engineer builds a Wall. 02894_ ALERT: Construction progress impeded, dispatching reinforcements to local area. 02894_ Penetrated by Slug. 02897_ Flak Cannon destroyed. 02899_ U-05 Engineer builds a Wall. 02900_ Penetrated by Slug. Map ----- +----------------------------------------------------+ | ????????????????????????????????""??????????????? | | ????????????????????????????????????????????????? | | ????????????????????????????????????????????????? | | ????????????????T???????????????????????????????? | | ????????????????????????????????????????????????? | | ????????????????????????????????????????????????? | | ????????????????????????????????????????????????? | | ????????????????????????????????????????????????? | | ????????????????????????????????????????????????? | | ????????????????????????????????????????????????? | | ???????????T????????????????????????????????????? | | ????????????????????????????????????????????????? | | ????????????????????????????????????????????????? | | ????????????????????????????????????????????????? | | ????????????????????????????????????????????????? | | ????????????????????????????????????????????????? | | ???????????????????????????????? ?????????????? | | ???????????????????????????????? < ? ?????????? | | ???????????????????????????????? ??????????? | | ???????????????????????????????? ??????????? | | ???????????????????????????????? #??????????? | | ???????????????????????????????? #??????????? | | ?????????????????????########### +??????????? | | ????????????????????## % # #??????????? | | ######??????????????##=! """ # #??????????? | | #???????????????#=% @ " " # #??????????? | | T #???????????????# u " " #! #??????????? | | #???????????????# % %#%! #??????????? | | #???????????????# % x # #??????????? | | #???????????????# %H # #?????????????? | | #######?????????# u %g #?????????????? | | ##+### ########??########### #?????????????? | | #?????###????# #?????????????? | | ############## #?????????????? | | #?????????????? | | ### ################## +?????????????? | | "########????????????????# #?????????????? | | T#???????????????????????# #?????????????? | | "#???????####????????????# ????????????? | | ####### #????????????# ??????????? | | #????????????# ####### ????????? | | " ??????????? #??????? #???????? | | &!* #????????????# #???????? #???????? | | ==%### ### #????????????# ??????????#???????? | | =%*#??? ???###?????????????# ??????????????????? | | #???? #??????????????????# ??????????????????? | | #?????#??????????????????#+??????????????????? | | #??????????????"T"???????????????????????????? | | #????????????????????????????????????????????? | | #????????????????????????????????????????????? | +----------------------------------------------------+ Best States ------------- Heat Dissipation 31 Energy Generation 15 Energy Capacity 250 Matter Stores 300 Matter Capacity 300 Sight Range 16 Terrain Scan Range 16 Terrain Scan Density 10 Armor Coverage 150 Evasion (%) 42 Targeting Accuracy 12 Recoil Reduction 2 Offensive Hacking 10 Item Schematics ----------------- None Robot Schematics ------------------ None Fabricated ------------ Nothing Repaired ---------- Lgt. Armor Plating | 32% | -10/Materials Alien Tech Used ----------------- None Achievements -------------- None Challenges ------------ None Game ------ Seed StealthDisposablePurifier Manual? 0 Play Time 00:22:24 Cumulative 61.7 hours Start 2025.06.27 @ 19:33:46 End 2025.06.27 @ 19:56:28 Sessions 1 Manual Loads 0 Difficulty Rogue Special Mode None Game No. 77 Rogue 77 Adventurer 0 Explorer 0 Win Type - Total 0 Types 0/0/0/0/0/0/0/0/0/0 Lore% 32 Gallery% 45 Achievement% 39 Wizard Run 0 Options --------- Layout 1 ASCII 0 Keyboard 0 Movement Mouse Keybinds 0 Fullscreen 1 Font 24/Smallcaps Map View 50x35 Zoom Use 0% Tactical HUD 1 Map Filters NONE Filters NONE Steam 1 RUN: ca27983e-8c97-41ce-8904-73ba5615657b